fUST/lending_fUST_20240515
["ID","MTS","AMOUNT","RATE_DAILY","PERIOD"]
[327058990,1715764238767,-500.0,0.00024556,2]
[327058991,1715764238776,-500.0,0.00024556,2]
[327058992,1715764238786,-500.0,0.00024556,2]
[327058993,1715764238795,-500.0,0.00024556,2]
[327058994,1715764238803,-500.0,0.00024556,2]
[327058995,1715764238813,-500.0,0.00024556,2]
[327058996,1715764238824,-500.0,0.00024556,2]
[327058997,1715764238833,-500.0,0.00024556,2]
[327058998,1715764238843,-500.0,0.00024556,2]
[327058999,1715764238852,-500.0,0.00024556,2]
[327059000,1715764238861,-500.0,0.00024556,2]
[327059001,1715764238870,-500.0,0.00024556,2]
[327059002,1715764238882,-500.0,0.00024556,2]
[327059003,1715764238892,-500.0,0.00024556,2]
[327059004,1715764238901,-500.0,0.00024556,2]
[327059005,1715764238911,-156.13073749,0.00024556,2]
[327059015,1715764240264,-202.27964403,0.00024556,2]
[327059016,1715764240274,-343.86926251,0.00024556,2]
[327059017,1715764240283,-500.0,0.00024556,2]
[327059018,1715764240292,-500.0,0.00024556,2]
[327059019,1715764240301,-500.0,0.00024556,2]
[327059020,1715764240310,-500.0,0.00024556,2]
[327059021,1715764240319,-500.0,0.00024556,2]
[327059022,1715764240329,-382.88845809,0.00024556,2]
[327059023,1715764240338,-500.0,0.00024556,2]
[327059024,1715764240348,-500.0,0.00024556,2]
[327059025,1715764240358,-500.0,0.00024556,2]
[327059026,1715764240367,-500.0,0.00024556,2]
[327059027,1715764240376,-500.0,0.00024556,2]
[327059028,1715764240386,-500.0,0.00024556,2]
[327059029,1715764240395,-500.0,0.00024556,2]
[327059030,1715764240404,-500.0,0.00024556,2]
[327059031,1715764240413,-500.0,0.00024556,2]
[327059032,1715764240422,-500.0,0.00024556,2]
[327059033,1715764240432,-300.0,0.00024556,2]
[327059034,1715764240441,-500.0,0.00024556,2]
[327059035,1715764240450,-500.0,0.00024556,2]
[327059036,1715764240459,-500.0,0.00024556,2]
[327059037,1715764240468,-36851.27094855,0.00024557,3]
[327059038,1715764240478,-5273.23056018,0.00024557,3]
[327059066,1715764245878,-14509.99999992,0.00024557,3]
[327059067,1715764272384,817.80441059,9.999e-05,2]
[327059068,1715764278830,1682.85215345,0.00015,2]
[327059069,1715764286534,154.84515485,9.999e-05,2]
[327059070,1715764295882,803.06229878,9.999e-05,2]
[327059071,1715764300978,15990.37419755,9.999e-05,2]
[327059072,1715764301001,1960.46242429,9.999e-05,2]
[327059073,1715764301389,585.03376366,9.999e-05,2]
[327059074,1715764310167,1042.78198065,9.999e-05,2]
[327059075,1715764318389,1449.81188868,0.0001,2]
[327059076,1715764320564,522.32566307,9.999e-05,2]
[327059077,1715764320967,1580.67651805,9.999e-05,2]
[327059078,1715764328302,154.84515485,9.999e-05,2]
[327059079,1715764437179,315.93368226,9.999e-05,2]
[327059080,1715764459746,500.0,9.999e-05,2]
[327059081,1715764467690,154.84515485,9.999e-05,2]
[327059083,1715764949686,242.08726604,9.999e-05,2]
[327059084,1715765136640,237.893554,0.00017798,2]
[327059085,1715765185443,16204.3096802,0.00017809,2]
[327059087,1715765267829,500.0,0.00017809,2]
[327059089,1715765319137,2627.65064471,0.0001702,2]
[327059090,1715765325307,155.02684002,0.00017809,2]
[327059091,1715765345233,154.87609912,0.00017809,2]
[327059092,1715765365225,204.79351937,0.00017809,2]
[327059093,1715765422587,384.22515753,9.999e-05,2]
[327059116,1715765432090,-702.19428712,0.0001812,2]
[327059117,1715765432100,-1586.53627158,0.00018121,2]
[327059118,1715765432111,-18649.42971678,0.00018121,2]
[327059119,1715765432123,-7890.55584427,0.00018122,2]
[327059120,1715765432132,-2364.16196179,0.00018123,2]
[327059121,1715765432142,-250.0,0.0001824,2]
[327059122,1715765432152,-168.16631479,0.00018457,2]
[327059123,1715765432161,-324.8830298,0.000189,2]
[327059124,1715765432171,-175.987975,0.00019178,2]
[327059125,1715765432180,-180.22791367,0.00019799,2]
[327059126,1715765432189,-189.49414795,0.00019899,2]
[327059127,1715765432198,-2096.43891643,0.0002,2]
[327059128,1715765432207,-3003.59627013,0.0002,2]
[327059129,1715765432216,-154.87609912,0.0002,2]
[327059130,1715765432225,-1021.73433773,0.00020813,2]
[327059131,1715765432235,-168.16631479,0.00020897,2]
[327059132,1715765432244,-711.11,0.000209,3]
[327059133,1715765432253,-355.56,0.000209,3]
[327059134,1715765432263,-177.78,0.000209,3]
[327059135,1715765432272,-533.35,0.000209,3]
[327059136,1715765432282,-14063.0842679,0.00020908,2]
[327059137,1715765432291,-316.94214515,0.00020909,2]
[327059138,1715765432300,-505.44079675,0.00020909,2]
[327059139,1715765432310,-500.0,0.00020909,2]
[327059140,1715765432319,-500.0,0.00020909,2]
[327059141,1715765432328,-500.0,0.00020909,2]
[327059142,1715765432338,-500.0,0.00020909,2]
[327059143,1715765432347,-500.0,0.00020909,2]
[327059144,1715765432356,-500.0,0.00020909,2]
[327059145,1715765432366,-500.0,0.00020909,2]
[327059146,1715765432379,-500.0,0.00020909,2]
[327059147,1715765432391,-500.0,0.00020909,2]
[327059148,1715765432400,-500.0,0.00020909,2]
[327059149,1715765432409,-500.0,0.00020909,2]
[327059150,1715765432418,-522.38826289,0.00020909,2]
[327059151,1715765432428,-500.0,0.00020909,2]
[327059152,1715765432437,-500.0,0.00020909,2]
[327059153,1715765432447,-500.0,0.00020909,2]
[327059154,1715765432456,-500.0,0.00020909,2]
[327059155,1715765432466,-500.0,0.00020909,2]
[327059156,1715765432475,-500.0,0.00020909,2]
[327059157,1715765432484,-500.0,0.00020909,2]
[327059158,1715765432494,-500.0,0.00020909,2]
[327059159,1715765432503,-500.0,0.00020909,2]
[327059160,1715765432513,-500.0,0.00020909,2]
[327059161,1715765432526,-500.0,0.00020909,2]
[327059162,1715765432536,-500.0,0.00020909,2]
[327059163,1715765432545,-500.0,0.00020909,2]
[327059164,1715765432554,-500.0,0.00020909,2]
[327059165,1715765432563,-500.0,0.00020909,2]
[327059166,1715765432573,-500.0,0.00020909,2]
[327059167,1715765432582,-419.3010435,0.00020909,2]
[327059168,1715765432591,-500.0,0.00020909,2]
[327059169,1715765432603,-500.0,0.00020909,2]
[327059170,1715765432614,-500.0,0.00020909,2]
[327059171,1715765432626,-500.0,0.00020909,2]
[327059172,1715765432635,-500.0,0.00020909,2]
[327059173,1715765432644,-500.0,0.00020909,2]
[327059174,1715765432654,-32336.35586186,0.0002091,2]
[327059175,1715765432664,-215.29577652,0.00020913,2]
[327059176,1715765432673,-500.0,0.00020913,2]
[327059177,1715765432682,-500.0,0.00020913,2]
[327059178,1715765432691,-500.0,0.00020913,2]
[327059179,1715765432700,-500.0,0.00020913,2]
[327059180,1715765432710,-500.0,0.00020913,2]
[327059181,1715765432719,-500.0,0.00020913,2]
[327059182,1715765432730,-500.0,0.00020913,2]
[327059183,1715765432740,-500.0,0.00020913,2]
[327059184,1715765432750,-412.38467751,0.00020913,2]
[327059185,1715765432760,-500.0,0.00020913,2]
[327059186,1715765432769,-500.0,0.00020913,2]
[327059187,1715765432778,-500.0,0.00020913,2]
[327059188,1715765432788,-500.0,0.00020913,2]
[327059189,1715765432797,-500.0,0.00020913,2]
[327059190,1715765432806,-500.0,0.00020913,2]
[327059191,1715765432815,-500.0,0.00020913,2]
[327059192,1715765432825,-482.88845808,0.00020913,2]
[327059193,1715765432834,-203.84824638,0.00020913,2]
[327059194,1715765432844,-500.0,0.00020913,2]
[327059195,1715765432853,-500.0,0.00020913,2]
[327059196,1715765432862,-500.0,0.00020913,2]
[327059197,1715765432872,-500.0,0.00020913,2]
[327059198,1715765432881,-500.0,0.00020913,2]
[327059199,1715765432890,-500.0,0.00020913,2]
[327059200,1715765432899,-500.0,0.00020913,2]
[327059201,1715765432909,-393.81533538,0.00020913,2]
[327059202,1715765432918,-500.0,0.00020913,2]
[327059203,1715765432928,-500.0,0.00020913,2]
[327059204,1715765432937,-500.0,0.00020913,2]
[327059205,1715765432947,-500.0,0.00020913,2]
[327059206,1715765432956,-500.0,0.00020913,2]
[327059207,1715765432965,-500.0,0.00020913,2]
[327059208,1715765432975,-500.0,0.00020913,2]
[327059209,1715765432984,-500.0,0.00020913,2]
[327059210,1715765432993,-500.0,0.00020913,2]
[327059211,1715765433003,-500.0,0.00020913,2]
[327059212,1715765433012,-500.0,0.00020913,2]
[327059213,1715765433022,-500.0,0.00020913,2]
[327059214,1715765433031,-500.0,0.00020913,2]
[327059215,1715765433041,-500.0,0.00020913,2]
[327059216,1715765433051,-500.0,0.00020913,2]
[327059217,1715765433060,-500.0,0.00020913,2]
[327059218,1715765433070,-585.5691159,0.00020913,2]
[327059219,1715765433079,-391.02200464,0.00020913,2]
[327059220,1715765433088,-3974.71033268,0.00021,2]
[327059221,1715765433097,-1021.7343377,0.00021724,2]
[327059222,1715765433107,-166.666666,0.00021918,2]
[327059223,1715765433116,-150.0,0.00022017,2]
[327059224,1715765433128,-1422.22,0.0002227,3]
[327059225,1715765433137,-711.12,0.0002227,3]
[327059226,1715765433146,-355.56,0.0002227,3]
[327059227,1715765433155,-150.0,0.00022506,2]
[327059228,1715765433165,-1021.7343377,0.00022634,2]
[327059229,1715765433174,-150.0,0.00022995,2]
[327059230,1715765433183,-200.2660357,0.00023014,2]
[327059231,1715765433193,-150.0,0.00023484,3]
[327059232,1715765433201,-1021.7343377,0.00023545,2]
[327059233,1715765433211,-204.2509034,0.00023836,2]
[327059234,1715765433221,-408.5018068,0.00023836,2]
[327059235,1715765433231,-408.5018068,0.00023836,2]
[327059236,1715765433240,-204.2509034,0.00023836,2]
[327059237,1715765433250,-324.8830298,0.000239,2]
[327059238,1715765433259,-150.0,0.00023973,3]
[327059239,1715765433269,-154.84515485,0.00024,2]
[327059240,1715765433278,-1236.80017075,0.00024109,2]
[327059241,1715765433287,-153.0,0.0002411,2]
[327059242,1715765433296,-306.0,0.0002411,2]
[327059243,1715765433306,-2744.93316216,0.00024322,2]
[327059244,1715765433316,-34807.00716761,0.00024355,3]
[327059245,1715765433444,-2000.0,0.00024355,2]
[327059246,1715765433459,-88888.0,0.00024355,3]
[327059247,1715765433468,-416.7728428,0.00024362,2]
[327059248,1715765433478,-167.8004914,0.00024362,2]
[327059249,1715765433487,-150.5659868,0.00024366,2]
[327059250,1715765433496,-153.0,0.00024384,2]
[327059251,1715765433506,-153.0,0.00024384,2]
[327059252,1715765433520,-153.0,0.00024384,2]
[327059253,1715765433530,-153.0,0.00024384,2]
[327059254,1715765433539,-16725.62046981,0.0002445,2]
[327059255,1715765433551,-203.477559,0.0002445,2]
[327059256,1715765433560,-151.0,0.0002445,2]
[327059257,1715765433570,-322.897311,0.0002445,2]
[327059258,1715765433580,-322.897311,0.0002445,2]
[327059259,1715765433591,-1627.764084,0.0002445,2]
[327059260,1715765433600,-1627.764084,0.0002445,2]
[327059261,1715765433609,-151.0,0.0002445,2]
[327059262,1715765433619,-151.0,0.0002445,2]
[327059263,1715765433629,-151.0,0.0002445,2]
[327059264,1715765433639,-950.113836,0.0002445,2]
[327059265,1715765433649,-950.113836,0.0002445,2]
[327059266,1715765433659,-197.576807,0.0002445,2]
[327059267,1715765433668,-14.62411163,0.0002445,2]
[327059268,1715765433682,-2457.01101737,0.0002445,2]
[327059269,1715765433692,-2471.635129,0.0002445,2]
[327059270,1715765433701,-151.0,0.0002445,2]
[327059271,1715765433711,-151.0,0.0002445,2]
[327059272,1715765433721,-151.0,0.0002445,2]
[327059273,1715765433732,-151.0,0.0002445,2]
[327059274,1715765433741,-914.702989,0.0002445,2]
[327059275,1715765433751,-914.702989,0.0002445,2]
[327059276,1715765433760,-7688.74933451,0.00024453,3]
[327059354,1715765438146,-193.303681,0.00024355,2]
[327059356,1715765438156,-5605.14279074,0.00024453,3]
[327059358,1715765438168,-258.78278744,0.00024453,3]
[327059415,1715765440400,-423.46009328,0.00024382,2]
[327059416,1715765440411,-193.303681,0.0002445,2]
[327059417,1715765440420,-193.303681,0.0002445,2]
[327059418,1715765440429,-18638.677264,0.00024453,3]
[327059419,1715765440439,-241.86478856,0.00024453,2]
[327059420,1715765440448,-8044.03835075,0.00024453,2]
[327059421,1715765440459,-151.0,0.00024453,2]
[327059422,1715765440469,-151.0,0.00024453,2]
[327059423,1715765440478,-2471.635129,0.00024453,2]
[327059424,1715765440488,-2471.635129,0.00024453,2]
[327059425,1715765440498,-151.0,0.00024453,2]
[327059426,1715765440508,-151.0,0.00024453,2]
[327059427,1715765440517,-151.0,0.00024453,2]
[327059428,1715765440531,-151.0,0.00024453,2]
[327059429,1715765440540,-914.702989,0.00024453,2]
[327059430,1715765440550,-914.702989,0.00024453,2]
[327059431,1715765440562,-193.303681,0.00024453,2]
[327059432,1715765440571,-322.897311,0.00024454,2]
[327059433,1715765440581,-322.897311,0.00024454,2]
[327059434,1715765440591,-1627.764084,0.00024454,2]
[327059435,1715765440603,-1627.764084,0.00024454,2]
[327059436,1715765440612,-151.0,0.00024454,2]
[327059437,1715765440622,-151.0,0.00024454,2]
[327059438,1715765440635,-950.113836,0.00024454,2]
[327059439,1715765440644,-950.113836,0.00024454,2]
[327059440,1715765440653,-151.0,0.00024454,2]
[327059441,1715765440663,-914.702989,0.00024454,2]
[327059442,1715765440673,-914.702989,0.00024454,2]
[327059443,1715765440682,-151.454866,0.00024455,2]
[327059444,1715765440691,-151.0,0.00024455,2]
[327059445,1715765440701,-151.0,0.00024455,2]
[327059446,1715765440710,-237.694409,0.00024455,2]
[327059447,1715765440719,-303.805838,0.00024455,2]
[327059448,1715765440728,-303.805838,0.00024455,2]
[327059449,1715765440737,-151.0,0.00024455,2]
[327059450,1715765440750,-151.0,0.00024455,2]
[327059451,1715765440769,-151.0,0.00024455,2]
[327059452,1715765440784,-151.0,0.00024455,2]
[327059453,1715765440801,-151.0,0.00024455,2]
[327059454,1715765440817,-151.0,0.00024455,2]
[327059455,1715765440834,-151.0,0.00024455,2]
[327059456,1715765440852,-322.897311,0.00024455,2]
[327059457,1715765440868,-322.897311,0.00024455,2]
[327059458,1715765440887,-322.897311,0.00024455,2]
[327059459,1715765440902,-322.897311,0.00024455,2]
[327059460,1715765440913,-1627.764084,0.00024455,2]
[327059461,1715765440929,-1627.764084,0.00024455,2]
[327059462,1715765440945,-1627.764084,0.00024455,2]
[327059463,1715765440962,-1627.764084,0.00024455,2]
[327059464,1715765440976,-151.0,0.00024455,2]
[327059465,1715765440987,-151.0,0.00024455,2]
[327059466,1715765441003,-186.20482,0.00024455,2]
[327059467,1715765441018,-151.0,0.00024455,2]
[327059468,1715765441031,-151.0,0.00024455,2]
[327059469,1715765441045,-950.113836,0.00024455,2]
[327059470,1715765441059,-950.113836,0.00024455,2]
[327059471,1715765441071,-950.113836,0.00024455,2]
[327059472,1715765441084,-950.113836,0.00024455,2]
[327059473,1715765441100,-1021.7343377,0.00024455,2]
[327059474,1715765441113,-2471.635129,0.00024455,2]
[327059475,1715765441126,-2471.635129,0.00024455,2]
[327059476,1715765441139,-2471.635129,0.00024455,2]
[327059477,1715765441151,-2471.635129,0.00024455,2]
[327059478,1715765441165,-151.0,0.00024455,2]
[327059479,1715765441178,-151.0,0.00024455,2]
[327059480,1715765441191,-216.234164,0.00024455,2]
[327059481,1715765441205,-151.0,0.00024455,2]
[327059482,1715765441218,-151.0,0.00024455,2]
[327059483,1715765441231,-151.0,0.00024455,2]
[327059484,1715765441247,-151.0,0.00024455,2]
[327059485,1715765441262,-914.702989,0.00024455,2]
[327059486,1715765441275,-914.702989,0.00024455,2]
[327059487,1715765441288,-914.702989,0.00024455,2]
[327059488,1715765441302,-914.702989,0.00024455,2]
[327059489,1715765441315,-193.303681,0.00024455,2]
[327059490,1715765441328,-193.303681,0.00024455,2]
[327059491,1715765441340,-16424.02023505,0.00024457,2]
[327059492,1715765441354,-281.31656163,0.00024457,2]
[327059493,1715765441367,-264.25841,0.00024457,2]
[327059494,1715765441381,-264.25841,0.00024457,2]
[327059495,1715765441395,-151.0,0.00024457,2]
[327059496,1715765441409,-151.0,0.00024457,2]
[327059497,1715765441421,-151.0,0.00024457,2]
[327059498,1715765441434,-151.0,0.00024457,2]
[327059499,1715765441447,-151.0,0.00024457,2]
[327059500,1715765441460,-151.0,0.00024457,2]
[327059501,1715765441473,-312.65672,0.00024457,2]
[327059502,1715765441485,-312.65672,0.00024457,2]
[327059503,1715765441498,-312.65672,0.00024457,2]
[327059504,1715765441512,-312.65672,0.00024457,2]
[327059505,1715765441527,-230.607554,0.00024457,2]
[327059506,1715765441539,-230.607554,0.00024457,2]
[327059507,1715765441552,-230.607554,0.00024457,2]
[327059508,1715765441567,-230.607554,0.00024457,2]
[327059509,1715765441580,-151.0,0.00024457,2]
[327059510,1715765441594,-151.0,0.00024457,2]
[327059511,1715765441608,-151.0,0.00024457,2]
[327059512,1715765441622,-151.0,0.00024457,2]
[327059513,1715765441637,-303.805838,0.00024457,2]
[327059514,1715765441650,-303.805838,0.00024457,2]
[327059515,1715765441663,-303.805838,0.00024457,2]
[327059516,1715765441677,-303.805838,0.00024457,2]
[327059517,1715765441690,-151.0,0.00024457,2]
[327059518,1715765441704,-151.0,0.00024457,2]
[327059519,1715765441717,-151.0,0.00024457,2]
[327059520,1715765441730,-322.897311,0.00024457,2]
[327059521,1715765441744,-322.897311,0.00024457,2]
[327059522,1715765441758,-1627.764084,0.00024457,2]
[327059523,1715765441773,-1627.764084,0.00024457,2]
[327059524,1715765441786,-151.0,0.00024457,2]
[327059525,1715765441799,-950.113836,0.00024457,2]
[327059526,1715765441812,-950.113836,0.00024457,2]
[327059527,1715765441825,-2471.635129,0.00024457,2]
[327059528,1715765441839,-2471.635129,0.00024457,2]
[327059529,1715765441852,-151.0,0.00024457,2]
[327059530,1715765441866,-151.65105,0.00024457,2]
[327059531,1715765441876,-151.0,0.00024457,2]
[327059532,1715765441886,-914.702989,0.00024457,2]
[327059533,1715765441895,-914.702989,0.00024457,2]
[327059534,1715765441905,-193.303681,0.00024457,2]
[327059535,1715765441915,-150.0,0.00024462,3]
[327059536,1715765441924,-157.554929,0.00024482,2]
[327059537,1715765441933,-151.0,0.00024482,2]
[327059538,1715765441943,-303.805838,0.00024482,2]
[327059539,1715765442170,-303.805838,0.00024482,2]
[327059540,1715765442194,-151.0,0.00024482,2]
[327059541,1715765442207,-151.0,0.00024482,2]
[327059542,1715765442218,-166.666666,0.00024482,2]
[327059543,1715765442228,-160.0,0.00024552,2]
[327059544,1715765442237,-185.72386911,0.00024552,2]
[327059545,1715765442247,-151.0,0.00024552,2]
[327059546,1715765442258,-151.0,0.00024552,2]
[327059547,1715765442269,-151.0,0.00024552,2]
[327059548,1715765442279,-322.897311,0.00024552,2]
[327059549,1715765442289,-322.897311,0.00024552,2]
[327059550,1715765442299,-1627.764084,0.00024552,2]
[327059551,1715765442309,-1627.764084,0.00024552,2]
[327059552,1715765442319,-151.0,0.00024552,2]
[327059553,1715765442329,-950.113836,0.00024552,2]
[327059554,1715765442339,-950.113836,0.00024552,2]
[327059555,1715765442352,-286.3624082,0.00024553,2]
[327059556,1715765442363,-245.33734162,0.00024553,2]
[327059557,1715765442374,-281.77738546,0.00024553,2]
[327059558,1715765442383,-1101.70647313,0.00024553,2]
[327059559,1715765442394,-20315.51703998,0.00024553,2]
[327059560,1715765442404,-309.62852309,0.00024553,2]
[327059561,1715765442413,-238.47421384,0.00024553,2]
[327059562,1715765442423,-839.11960495,0.00024553,2]
[327059563,1715765442432,-277.62066028,0.00024553,2]
[327059564,1715765442441,-486.98632187,0.00024553,2]
[327059565,1715765442450,-587.03050934,0.00024553,2]
[327059566,1715765442460,-156.27828989,0.00024553,2]
[327059567,1715765442469,-2631.62253503,0.00024553,2]
[327059568,1715765442478,-599.72068262,0.00024553,2]
[327059569,1715765442487,-587.97188543,0.00024553,2]
[327059570,1715765442497,-451.99435923,0.00024553,2]
[327059574,1715765442518,-261.606997,0.00024355,2]
[327059576,1715765442527,-146.59378322,0.00024553,2]
[327059697,1715765518666,2106.56360216,0.00015,2]
[327059698,1715765541320,154.87609912,9.999e-05,2]
[327059699,1715765546938,502.28515964,9.999e-05,2]
[327059700,1715765554663,1449.81188868,0.0001,2]
[327059701,1715765561598,284.88862026,9.999e-05,2]
[327059703,1715766006551,238.98093795,9.999e-05,2]
[327059705,1715766449504,47048.3439643,0.000242,120]
[327059706,1715766449530,17598.0560357,0.000242,120]
[327059707,1715766449908,42401.9439643,0.000242,120]
[327059708,1715766449930,22244.4560357,0.000242,120]
[327059709,1715766450446,37755.5439643,0.000242,120]
[327059710,1715766450493,26890.8560357,0.000242,120]
[327059711,1715766450785,64646.4,0.000242,120]
[327059712,1715766451347,64646.4,0.000242,120]
[327059713,1715766451687,64646.4,0.000242,120]
[327059714,1715766451989,64646.4,0.000242,120]
[327059715,1715766452403,64646.4,0.000242,120]
[327059716,1715766452848,64646.4,0.000242,120]
[327059717,1715766453170,64646.4,0.000242,120]
[327059718,1715766453461,64646.4,0.000242,120]
[327059719,1715766453795,64646.4,0.000242,120]
[327059720,1715766454113,64646.4,0.000242,120]
[327059721,1715766454444,64646.4,0.000242,120]
[327059722,1715766454766,64646.4,0.000242,120]
[327059723,1715766455084,3966.0,0.000242,120]
[327059729,1715766560474,1884.51859878,9.999e-05,2]
[327059736,1715766628718,500.0,0.000265,120]
[327060229,1715766639506,-238.98093795,0.00018889,2]
[327060231,1715766639516,-242.08726604,0.00018889,2]
[327060233,1715766639526,-702.19428712,0.0001889,2]
[327060235,1715766639536,-154.82968734,0.00018891,2]
[327060237,1715766639546,-1576.10797453,0.00018891,2]
[327060239,1715766639556,-150.0,0.000189,2]
[327060241,1715766639565,-250.0,0.00018929,2]
[327060243,1715766639575,-154.83674509,0.0002,2]
[327060245,1715766639585,-1564.87365674,0.00020911,2]
[327060247,1715766639595,-5523.15558728,0.00020912,2]
[327060367,1715766640953,-6839.48630629,0.00020912,2]
[327060369,1715766640967,-7423.44885445,0.00020912,2]
[327060372,1715766640980,-734.28828512,0.00020912,2]
[327060374,1715766640993,-1043.28965634,0.00020912,2]
[327060410,1715766641330,-14281.5450114,0.00020912,2]
[327060412,1715766641340,-500.0,0.00020913,2]
[327060414,1715766641350,-500.0,0.00020913,2]
[327060416,1715766641359,-500.0,0.00020913,2]
[327060418,1715766641369,-500.0,0.00020913,2]
[327060420,1715766641379,-333.5623021,0.00020913,2]
[327060422,1715766641389,-500.0,0.00020913,2]
[327060424,1715766641399,-500.0,0.00020913,2]
[327060426,1715766641409,-500.0,0.00020913,2]
[327060428,1715766641418,-16705.14342811,0.00020913,2]
[327060430,1715766641428,-166.6666677,0.00021918,2]
[327060431,1715766641437,-156.4,0.00022143,2]
[327060432,1715766641447,-725.86,0.00022245,3]
[327060433,1715766641456,-8970.43152249,0.00022255,2]
[327060434,1715766641465,-69.53441,0.00022621,2]
[327060734,1715766645118,-150.0,0.00022143,2]
[327060735,1715766645128,-86.86559,0.00022621,2]
[327060736,1715766645138,-150.0,0.00022621,2]
[327060737,1715766645147,-408.5018068,0.00023014,2]
[327060738,1715766645159,-408.5018068,0.00023014,2]
[327060739,1715766645168,-156.4,0.00023098,2]
[327060740,1715766645327,-156.4,0.00023576,3]
[327060741,1715766645347,-1451.72,0.00023615,3]
[327060742,1715766645356,-153.0,0.00023699,2]
[327060743,1715766645365,-204.2509034,0.00023836,2]
[327060744,1715766645375,-204.2613691,0.00023836,2]
[327060745,1715766645384,-204.2613691,0.00023836,2]
[327060746,1715766645393,-408.5122725,0.00023836,2]
[327060747,1715766645403,-204.2613691,0.00023836,2]
[327060748,1715766645412,-408.5122725,0.00023836,2]
[327060749,1715766645421,-408.4390126,0.00023836,2]
[327060750,1715766645429,-278.01653405,0.00023836,2]
[327060873,1715766659565,1407.23420979,9.999e-05,2]
[327060880,1715767107939,709.0884584,9.999e-05,2]
[327060909,1715767833692,-242.08726604,0.00018252,2]
[327060910,1715767833701,-154.82968734,0.00018252,2]
[327060911,1715767833710,-1313.42331211,0.00018253,2]
[327060912,1715767833719,-702.19428712,0.00018253,2]
[327060913,1715767833728,-154.82968734,0.00018254,2]
[327060914,1715767833737,-2331.3969506,0.0001826,2]
[327060915,1715767833746,-990.9687576,0.00018562,2]
[327060916,1715767833755,-1351.155,0.00018671,2]
[327060917,1715767833764,-921.54747398,0.00018693,2]
[327060918,1715767833775,-189.49414795,0.00018793,2]
[327060919,1715767833784,-232.62950346,0.000189,2]
[327060920,1715767833793,-1564.87365674,0.0002,2]
[327060921,1715767833802,-180.22791367,0.00020813,2]
[327060922,1715767833811,-23586.30718313,0.00020912,2]
[327060923,1715767833820,-8708.28981916,0.00020913,2]
[327060924,1715767833830,-204.2509034,0.00023014,2]
[327060925,1715767833839,-204.2509034,0.00023014,2]
[327060926,1715767833848,-204.2509034,0.00023068,2]
[327060927,1715767833858,-408.5122725,0.00023068,2]
[327060928,1715767833867,-408.5018068,0.00023288,2]
[327060929,1715767833876,-204.2509034,0.00023288,2]
[327060930,1715767833886,-204.2613691,0.00023562,2]
[327060931,1715767833895,-416.7728428,0.00023661,2]
[327060932,1715767833904,-2437.07011508,0.00023744,2]
[327060933,1715767833913,-204.2509034,0.00023781,2]
[327060934,1715767833922,-3568.89754908,0.00023836,2]
[327060935,1715767833935,-405.8127836,0.00023836,2]
[327060936,1715767833943,-232.62950346,0.000239,2]
[327060937,1715767833953,-213.38957238,0.00024,2]
[327060938,1715767833962,-373.95814056,0.0002411,2]
[327060939,1715767834018,-42.04237824,0.0002411,2]
[327060940,1715767834027,-204.2509034,0.0002411,2]
[327060941,1715767834037,-500.0,0.000242,2]
[327060942,1715767834046,-150.0,0.0002426,8]
[327060943,1715767834055,-306.28060985,0.0002431,2]
[327060944,1715767834065,-1000.0,0.0002433,2]
[327060945,1715767834075,-799.86,0.0002434,3]
[327060946,1715767834084,-533.22,0.00024343,3]